fUSD/lending_fUSD_20240318
["ID","MTS","AMOUNT","RATE_DAILY","PERIOD"]
[319477304,1710799920427,-500.0,0.00023287,2]
[319477305,1710799920436,-1704.18,0.00023287,2]
[319477306,1710799920446,-2264.59,0.00023287,2]
[319477307,1710799920456,-500.0,0.00023287,2]
[319477308,1710799920465,-500.0,0.00023287,2]
[319477309,1710799920474,-999.91,0.00023287,2]
[319477310,1710799920483,-1138.58,0.00023287,2]
[319477311,1710799920493,-1455.99,0.00023287,2]
[319477312,1710799920503,-500.0,0.00023287,2]
[319477313,1710799920512,-500.0,0.00023287,2]
[319477314,1710799920522,-951.86,0.00023287,2]
[319477315,1710799920531,-500.0,0.00023287,2]
[319477316,1710799920540,-780.67,0.00023287,2]
[319477317,1710799920549,-1309.57,0.00023287,2]
[319477318,1710799920558,-500.0,0.00023287,2]
[319477319,1710799920567,-500.0,0.00023287,2]
[319477320,1710799920577,-500.0,0.00023287,2]
[319477321,1710799920588,-500.0,0.00023287,2]
[319477322,1710799920597,-500.0,0.00023287,2]
[319477323,1710799920607,-4539.82,0.00023287,2]
[319477324,1710799920616,-500.0,0.00023287,2]
[319477325,1710799920626,-4994.79,0.00023287,2]
[319477326,1710799920635,-1485.77,0.00023287,2]
[319477327,1710799920644,-1794.57,0.00023287,2]
[319477328,1710799920655,-7034.98,0.00023287,2]
[319477329,1710799920664,-849.91,0.00023287,2]
[319477330,1710799920673,-500.0,0.00023287,2]
[319477331,1710799920682,-500.0,0.00023287,2]
[319477332,1710799920691,-750.9,0.00023287,2]
[319477333,1710799920700,-2385.09,0.00023287,2]
[319477334,1710799920709,-500.0,0.00023287,2]
[319477335,1710799920718,-500.0,0.00023287,2]
[319477336,1710799920727,-1615.86,0.00023287,2]
[319477337,1710799920736,-6038.49,0.00023287,2]
[319477338,1710799920746,-979.41,0.00023287,2]
[319477339,1710799920755,-1135.58,0.00023287,2]
[319477340,1710799920764,-347.41578453,0.00023287,2]
[319477341,1710799920773,-6456.64,0.00023287,2]
[319477342,1710799920783,-942.12,0.00023287,2]
[319477343,1710799920792,-1504.81,0.00023287,2]
[319477344,1710799920800,-500.0,0.00023287,2]
[319477345,1710799920809,-500.0,0.00023287,2]
[319477346,1710799920818,-500.0,0.00023287,2]
[319477347,1710799920827,-854.48,0.00023287,2]
[319477348,1710799920836,-508.22,0.00023287,2]
[319477349,1710799920845,-662.67,0.00023287,2]
[319477350,1710799920854,-2520.23,0.00023287,2]
[319477351,1710799920864,-40338.6,0.00023287,2]
[319477352,1710799920873,-1120.6,0.00023287,2]
[319477353,1710799920883,-1192.63,0.00023287,2]
[319477354,1710799920892,-4121.83,0.00023287,2]
[319477355,1710799920902,-2259.16,0.00023287,2]
[319477356,1710799920911,-2157.68,0.00023287,2]
[319477357,1710799920921,-500.0,0.00023287,2]
[319477358,1710799920930,-2358.27,0.00023287,2]
[319477359,1710799920939,-580.06320889,0.00023287,2]
[319477360,1710799920949,-500.0,0.00023287,2]
[319477361,1710799920958,-607.07298524,0.00023287,2]
[319477362,1710799920968,-6231.23,0.00023287,2]
[319477363,1710799920977,-500.0,0.00023287,2]
[319477364,1710799920987,-500.0,0.00023287,2]
[319477365,1710799920997,-2126.6,0.00023287,2]
[319477366,1710799921006,-177.09,0.00023288,14]
[319477367,1710799921016,-432.0,0.00023288,2]
[319477368,1710799921026,-155.0,0.00023288,2]
[319477369,1710799921036,-22230.29438275,0.00023308,2]
[319477370,1710799921045,-1940.62,0.00023335,2]
[319477371,1710799921055,-153.05383812,0.00023339,2]
[319477372,1710799921065,-1000.0,0.00023358,2]
[319477373,1710799921075,-150.95,0.00023379,2]
[319477374,1710799921085,-153.80188616,0.00023411,2]
[319477375,1710799921095,-792.92436257,0.00023456,2]
[319477376,1710799921104,-152.83842325,0.00023461,2]
[319477377,1710799921113,-1332.05421387,0.00023461,7]
[319477378,1710799921122,-151.07221851,0.00023488,2]
[319477379,1710799921132,-13000.0,0.000235,2]
[319477380,1710799921141,-422.70430988,0.000235,2]
[319477381,1710799921152,-310.797397,0.00023526,2]
[319477382,1710799921163,-2420.501041,0.00023526,2]
[319477383,1710799921172,-605.125261,0.00023526,2]
[319477384,1710799921181,-1919.09106593,0.0002354,2]
[319477385,1710799921191,-5850.1559099,0.00023561,2]
[319477386,1710799921200,-500.0,0.00023561,2]
[319477387,1710799921209,-500.0,0.00023561,2]
[319477388,1710799921218,-500.0,0.00023561,2]
[319477389,1710799921227,-500.0,0.00023561,2]
[319477390,1710799921237,-353.24257855,0.00023561,2]
[319477391,1710799921246,-500.0,0.00023561,2]
[319477392,1710799921255,-586.26331887,0.00023561,2]
[319477393,1710799921265,-500.0,0.00023561,2]
[319477394,1710799921274,-500.0,0.00023561,2]
[319477395,1710799921283,-500.0,0.00023561,2]
[319477396,1710799921292,-754.65,0.00023561,2]
[319477397,1710799921301,-500.0,0.00023561,2]
[319477398,1710799921310,-157.41876854,0.00023561,2]
[319477399,1710799921320,-1183.48,0.00023561,2]
[319477400,1710799921330,-466.46148485,0.00023561,2]
[319477401,1710799921341,-500.0,0.00023561,2]
[319477402,1710799921350,-500.0,0.00023561,2]
[319477403,1710799921359,-500.0,0.00023561,2]
[319477404,1710799921369,-500.0,0.00023561,2]
[319477405,1710799921378,-500.0,0.00023561,2]
[319477406,1710799921387,-500.0,0.00023561,2]
[319477407,1710799921397,-841.06,0.00023561,2]
[319477408,1710799921408,-1050.21,0.00023561,2]
[319477409,1710799921417,-603.24,0.00023561,2]
[319477410,1710799921427,-500.0,0.00023561,2]
[319477411,1710799921436,-864.95,0.00023561,2]
[319477412,1710799921445,-500.0,0.00023561,2]
[319477413,1710799921454,-801.98,0.00023561,2]
[319477414,1710799921464,-519.03478867,0.00023561,2]
[319477415,1710799921473,-2023.13,0.00023561,2]
[319477416,1710799921483,-500.0,0.00023561,2]
[319477417,1710799921492,-500.0,0.00023561,2]
[319477418,1710799921502,-2257.25,0.00023561,2]
[319477419,1710799921511,-1080.91,0.00023561,2]
[319477420,1710799921520,-794.11,0.00023561,2]
[319477421,1710799921529,-753.34,0.00023561,2]
[319477422,1710799921539,-500.0,0.00023561,2]
[319477423,1710799921548,-841.73,0.00023561,2]
[319477424,1710799921557,-2219.16,0.00023561,2]
[319477425,1710799921566,-637.28,0.00023561,2]
[319477426,1710799921577,-500.0,0.00023561,2]
[319477427,1710799921589,-822.95,0.00023561,2]
[319477428,1710799921598,-532.03,0.00023561,2]
[319477429,1710799921607,-500.0,0.00023561,2]
[319477430,1710799921616,-500.0,0.00023561,2]
[319477431,1710799921626,-456.94717901,0.00023561,2]
[319477432,1710799921636,-500.0,0.00023561,2]
[319477433,1710799921645,-666.77,0.00023561,2]
[319477434,1710799921657,-500.0,0.00023561,2]
[319477435,1710799921666,-483.24358282,0.00023561,2]
[319477436,1710799921675,-2410.75,0.00023561,2]
[319477437,1710799921684,-500.0,0.00023561,2]
[319477438,1710799921694,-1083.62,0.00023561,2]
[319477439,1710799921703,-1096.76,0.00023561,2]
[319477440,1710799921713,-1153.52,0.00023561,2]
[319477441,1710799921723,-500.0,0.00023561,2]
[319477442,1710799921732,-201.65861032,0.00023561,2]
[319477443,1710799921742,-500.0,0.00023561,2]
[319477444,1710799921751,-1579.95,0.00023561,2]
[319477445,1710799921762,-1079.02,0.00023561,2]
[319477446,1710799921771,-500.0,0.00023561,2]
[319477447,1710799921781,-500.0,0.00023561,2]
[319477448,1710799921790,-500.0,0.00023561,2]
[319477449,1710799921799,-500.0,0.00023561,2]
[319477450,1710799921808,-500.0,0.00023561,2]
[319477451,1710799921818,-604.92,0.00023561,2]
[319477452,1710799921827,-2112.17,0.00023561,2]
[319477453,1710799921836,-788.06,0.00023561,2]
[319477454,1710799921846,-965.6,0.00023561,2]
[319477455,1710799921858,-567.24,0.00023561,2]
[319477456,1710799921867,-1057.53,0.00023561,2]
[319477457,1710799921877,-500.0,0.00023561,2]
[319477458,1710799921886,-1346.77,0.00023561,2]
[319477459,1710799921895,-712.98,0.00023561,2]
[319477460,1710799921906,-624.81,0.00023561,2]
[319477461,1710799921915,-1820.6,0.00023561,2]
[319477462,1710799921925,-500.0,0.00023561,2]
[319477463,1710799921934,-750.79,0.00023561,2]
[319477464,1710799921943,-628.64,0.00023561,2]
[319477465,1710799921952,-787.89,0.00023561,2]
[319477466,1710799921961,-593.51,0.00023561,2]
[319477467,1710799921970,-750.42,0.00023561,2]
[319477468,1710799921979,-622.98,0.00023561,2]
[319477469,1710799921989,-500.0,0.00023561,2]
[319477470,1710799921999,-1628.79,0.00023561,2]
[319477471,1710799922008,-500.0,0.00023561,2]
[319477472,1710799922018,-837.33,0.00023561,2]
[319477473,1710799922027,-830.73,0.00023561,2]
[319477474,1710799922037,-3414.73,0.00023561,2]
[319477475,1710799922046,-500.0,0.00023561,2]
[319477476,1710799922055,-1594.83,0.00023561,2]
[319477477,1710799922065,-1565.76,0.00023561,2]
[319477478,1710799922074,-500.0,0.00023561,2]
[319477479,1710799922083,-500.0,0.00023561,2]
[319477480,1710799922093,-2289.86,0.00023561,2]
[319477481,1710799922102,-374.09465736,0.00023561,2]
[319477482,1710799922112,-2327.27,0.00023561,2]
[319477483,1710799922121,-1043.46,0.00023561,2]
[319477484,1710799922131,-1166.79,0.00023561,2]
[319477485,1710799922140,-549.91,0.00023561,2]
[319477486,1710799922150,-568.66,0.00023561,2]
[319477487,1710799922159,-771.19,0.00023561,2]
[319477488,1710799922168,-1513.08,0.00023561,2]
[319477489,1710799922178,-2753.66,0.00023561,2]
[319477490,1710799922187,-1842.48,0.00023561,2]
[319477491,1710799922197,-341.10838732,0.00023561,2]
[319477492,1710799922206,-500.0,0.00023561,2]
[319477493,1710799922215,-500.0,0.00023561,2]
[319477494,1710799922226,-1460.74,0.00023561,2]
[319477495,1710799922235,-500.0,0.00023561,2]
[319477496,1710799922244,-942.07,0.00023561,2]
[319477497,1710799922253,-895.46,0.00023561,2]
[319477498,1710799922262,-1989.79,0.00023561,2]
[319477499,1710799922271,-500.0,0.00023561,2]
[319477500,1710799922281,-1990.34,0.00023561,2]
[319477501,1710799922290,-500.0,0.00023561,2]
[319477502,1710799922300,-570.11,0.00023561,2]
[319477503,1710799922309,-594.54,0.00023561,2]
[319477504,1710799922318,-500.0,0.00023561,2]
[319477505,1710799922327,-500.0,0.00023561,2]
[319477506,1710799922337,-500.0,0.00023561,2]
[319477507,1710799922346,-2010.18,0.00023561,2]
[319477508,1710799922356,-448.53133569,0.00023561,2]
[319477509,1710799922366,-500.0,0.00023561,2]
[319477510,1710799922375,-500.0,0.00023561,2]
[319477511,1710799922385,-500.0,0.00023561,2]
[319477512,1710799922395,-624.70878957,0.00023561,2]
[319477513,1710799922405,-1089.38,0.00023561,2]
[319477514,1710799922415,-1225.65,0.00023561,2]
[319477515,1710799922425,-2976.15,0.00023561,2]
[319477516,1710799922434,-705.19,0.00023561,2]
[319477517,1710799922445,-508.99,0.00023561,2]
[319477518,1710799922455,-226.97963087,0.00023561,2]
[319477519,1710799922465,-501.15,0.00023561,2]
[319477520,1710799922475,-1173.9,0.00023561,2]
[319477521,1710799922486,-527.52512832,0.00023561,2]
[319477522,1710799922496,-500.0,0.00023561,2]
[319477523,1710799922506,-1787.1,0.00023561,2]
[319477524,1710799922516,-500.0,0.00023561,2]
[319477525,1710799922526,-1969.89,0.00023561,2]
[319477526,1710799922536,-551.56,0.00023561,2]
[319477527,1710799922546,-500.0,0.00023561,2]
[319477528,1710799922556,-500.0,0.00023561,2]
[319477529,1710799922566,-634.39,0.00023561,2]
[319477530,1710799922580,-515.85,0.00023561,2]
[319477531,1710799922600,-1763.14,0.00023561,2]
[319477532,1710799922612,-500.0,0.00023561,2]
[319477533,1710799922622,-1610.23,0.00023561,2]
[319477534,1710799922632,-369.03853982,0.00023561,2]
[319477535,1710799922642,-698.44,0.00023561,2]
[319477536,1710799922654,-757.78,0.00023561,2]
[319477537,1710799922664,-500.0,0.00023561,2]
[319477538,1710799922674,-500.0,0.00023561,2]
[319477539,1710799922683,-500.0,0.00023561,2]
[319477540,1710799922692,-500.0,0.00023561,2]
[319477541,1710799922702,-3621.53,0.00023561,2]
[319477542,1710799922712,-500.0,0.00023561,2]
[319477543,1710799922721,-1107.01,0.00023561,2]
[319477544,1710799922731,-3272.98,0.00023561,2]
[319477545,1710799922740,-500.0,0.00023561,2]
[319477546,1710799922750,-500.0,0.00023561,2]
[319477547,1710799922759,-617.42,0.00023561,2]
[319477548,1710799922769,-500.0,0.00023561,2]
[319477549,1710799922779,-833.03,0.00023561,2]
[319477550,1710799922788,-1059.1,0.00023561,2]
[319477551,1710799922798,-500.0,0.00023561,2]
[319477552,1710799922808,-2995.13,0.00023561,2]
[319477553,1710799922818,-500.0,0.00023561,2]
[319477554,1710799922828,-500.0,0.00023561,2]
[319477555,1710799922838,-1379.17,0.00023561,2]
[319477556,1710799922847,-2205.14,0.00023561,2]
[319477557,1710799922857,-500.0,0.00023561,2]
[319477558,1710799922866,-1296.97,0.00023561,2]
[319477559,1710799922876,-684.91,0.00023561,2]
[319477560,1710799922886,-500.0,0.00023561,2]
[319477561,1710799922895,-307.78047776,0.00023561,2]
[319477562,1710799922906,-500.0,0.00023561,2]
[319477563,1710799922916,-1167.23,0.00023561,2]
[319477564,1710799922926,-500.0,0.00023561,2]
[319477565,1710799922936,-500.0,0.00023561,2]
[319477566,1710799922945,-1111.67,0.00023561,2]
[319477567,1710799922955,-500.0,0.00023561,2]
[319477568,1710799922965,-1840.74,0.00023561,2]
[319477569,1710799922975,-1159.15,0.00023561,2]
[319477570,1710799922985,-500.0,0.00023561,2]
[319477571,1710799922994,-500.0,0.00023561,2]
[319477572,1710799923003,-1071.26,0.00023561,2]
[319477573,1710799923013,-732.2,0.00023561,2]
[319477574,1710799923022,-2487.12,0.00023561,2]
[319477575,1710799923031,-500.0,0.00023561,2]
[319477576,1710799923041,-1409.81,0.00023561,2]
[319477577,1710799923051,-2258.29,0.00023561,2]
[319477578,1710799923061,-500.0,0.00023561,2]
[319477579,1710799923070,-885.61,0.00023561,2]
[319477580,1710799923079,-500.0,0.00023561,2]
[319477581,1710799923089,-728.7,0.00023561,2]
[319477582,1710799923099,-205.63492746,0.00023561,2]
[319477583,1710799923109,-500.0,0.00023561,2]
[319477584,1710799923119,-981.29,0.00023561,2]
[319477585,1710799923129,-619.02,0.00023561,2]
[319477586,1710799923139,-500.0,0.00023561,2]
[319477587,1710799923149,-3027.38,0.00023561,2]
[319477588,1710799923162,-2230.77,0.00023561,2]
[319477589,1710799923172,-2148.85,0.00023561,2]
[319477590,1710799923182,-847.31,0.00023561,2]
[319477591,1710799923191,-500.0,0.00023561,2]
[319477592,1710799923201,-500.0,0.00023561,2]
[319477593,1710799923211,-281.92424726,0.00023561,2]
[319477594,1710799923220,-500.0,0.00023561,2]
[319477595,1710799923230,-500.0,0.00023561,2]
[319477596,1710799923240,-1040.92,0.00023561,2]
[319477597,1710799923249,-1016.05,0.00023561,2]
[319477598,1710799923259,-500.0,0.00023561,2]
[319477599,1710799923269,-625.78,0.00023561,2]
[319477600,1710799923278,-1988.29,0.00023561,2]
[319477601,1710799923288,-673.87,0.00023561,2]
[319477602,1710799923298,-500.0,0.00023561,2]
[319477603,1710799923308,-803.43,0.00023561,2]
[319477604,1710799923318,-2712.0,0.00023561,2]
[319477605,1710799923329,-618.27,0.00023561,2]
[319477606,1710799923339,-925.33,0.00023561,2]
[319477607,1710799923349,-1492.36,0.00023561,2]
[319477608,1710799923358,-1934.24,0.00023561,2]
[319477609,1710799923368,-1347.96,0.00023561,2]
[319477610,1710799923377,-500.0,0.00023561,2]
[319477611,1710799923387,-500.0,0.00023561,2]
[319477612,1710799923398,-500.0,0.00023561,2]
[319477613,1710799923410,-618.35,0.00023561,2]
[319477614,1710799923420,-500.0,0.00023561,2]
[319477615,1710799923430,-500.0,0.00023561,2]
[319477616,1710799923439,-736.87,0.00023561,2]
[319477617,1710799923449,-3249.34,0.00023561,2]
[319477618,1710799923459,-500.0,0.00023561,2]
[319477619,1710799923470,-1048.99,0.00023561,2]
[319477620,1710799923479,-500.0,0.00023561,2]
[319477621,1710799923489,-555.58,0.00023561,2]
[319477622,1710799923499,-695.99,0.00023561,2]
[319477623,1710799923509,-500.0,0.00023561,2]
[319477624,1710799923518,-500.0,0.00023561,2]
[319477625,1710799923528,-500.0,0.00023561,2]
[319477626,1710799923538,-1686.42,0.00023561,2]
[319477627,1710799923547,-500.0,0.00023561,2]
[319477628,1710799923558,-500.0,0.00023561,2]
[319477629,1710799923568,-500.0,0.00023561,2]
[319477630,1710799923579,-2027.85,0.00023561,2]
[319477631,1710799923590,-3300.65,0.00023561,2]
[319477632,1710799923599,-1879.8,0.00023561,2]
[319477633,1710799923609,-689.62,0.00023561,2]
[319477634,1710799923620,-600.13,0.00023561,2]
[319477635,1710799923630,-3602.93,0.00023561,2]
[319477636,1710799923639,-500.0,0.00023561,2]
[319477637,1710799923649,-500.0,0.00023561,2]
[319477638,1710799923661,-839.53,0.00023561,2]
[319477639,1710799923672,-500.0,0.00023561,2]
[319477640,1710799923682,-734.91,0.00023561,2]
[319477641,1710799923692,-1753.56,0.00023561,2]
[319477642,1710799923701,-839.74,0.00023561,2]
[319477643,1710799923711,-500.0,0.00023561,2]
[319477644,1710799923720,-500.0,0.00023561,2]
[319477645,1710799923731,-500.0,0.00023561,2]
[319477646,1710799923740,-500.0,0.00023561,2]
[319477647,1710799923752,-4941.23,0.00023561,2]
[319477648,1710799923761,-924.55,0.00023561,2]
[319477649,1710799923771,-646.58,0.00023561,2]
[319477650,1710799923780,-1444.11,0.00023561,2]
[319477651,1710799923790,-1862.07,0.00023561,2]
[319477652,1710799923800,-2596.77,0.00023561,2]
[319477653,1710799923810,-600.66,0.00023561,2]
[319477654,1710799923819,-1913.61,0.00023561,2]
[319477655,1710799923828,-1169.17,0.00023561,2]
[319477656,1710799923838,-501.0,0.00023561,2]
[319477657,1710799923848,-500.0,0.00023561,2]
[319477658,1710799924067,-671.74,0.00023561,2]
[319477659,1710799924077,-500.0,0.00023561,2]
[319477660,1710799924086,-500.0,0.00023561,2]
[319477661,1710799924095,-500.0,0.00023561,2]
[319477662,1710799924104,-660.79,0.00023561,2]
[319477663,1710799924113,-500.0,0.00023561,2]
[319477664,1710799924122,-4429.56,0.00023561,2]
[319477665,1710799924131,-645.13,0.00023561,2]
[319477666,1710799924141,-1387.34,0.00023561,2]
[319477667,1710799924150,-500.0,0.00023561,2]
[319477668,1710799924162,-500.0,0.00023561,2]
[319477669,1710799924171,-1092.65,0.00023561,2]
[319477670,1710799924180,-1234.18,0.00023561,2]
[319477671,1710799924189,-775.21,0.00023561,2]
[319477672,1710799924198,-1640.92,0.00023561,2]
[319477673,1710799924207,-660.8,0.00023561,2]
[319477674,1710799924217,-500.0,0.00023561,2]
[319477675,1710799924226,-618.02,0.00023561,2]
[319477676,1710799924235,-500.0,0.00023561,2]
[319477677,1710799924245,-500.0,0.00023561,2]
[319477678,1710799924254,-2991.4,0.00023561,2]
[319477679,1710799924264,-526.67,0.00023561,2]
[319477680,1710799924274,-520.66,0.00023561,2]
[319477681,1710799924283,-500.0,0.00023561,2]
[319477682,1710799924293,-3432.69,0.00023561,2]
[319477683,1710799924302,-929.21,0.00023561,2]
[319477684,1710799924311,-2512.6,0.00023561,2]
[319477685,1710799924321,-500.0,0.00023561,2]
[319477686,1710799924330,-553.17,0.00023561,2]
[319477687,1710799924340,-632.91,0.00023561,2]
[319477688,1710799924349,-587.03,0.00023561,2]
[319477689,1710799924358,-500.0,0.00023561,2]
[319477690,1710799924368,-500.0,0.00023561,2]
[319477691,1710799924377,-1670.28,0.00023561,2]
[319477692,1710799924387,-588.94,0.00023561,2]
[319477693,1710799924397,-1508.72,0.00023561,2]
[319477694,1710799924407,-500.0,0.00023561,2]
[319477695,1710799924416,-992.88,0.00023561,2]
[319477696,1710799924426,-2672.81,0.00023561,2]
[319477697,1710799924435,-1421.34,0.00023561,2]
[319477698,1710799924445,-1479.34,0.00023561,2]
[319477699,1710799924455,-1591.7,0.00023561,2]
[319477700,1710799924464,-778.13,0.00023561,2]
[319477701,1710799924474,-500.0,0.00023561,2]
[319477702,1710799924483,-549.69,0.00023561,2]
[319477703,1710799924492,-430.03359168,0.00023561,2]
[319477704,1710799924502,-1096.72,0.00023561,2]
[319477705,1710799924511,-500.0,0.00023561,2]
[319477706,1710799924521,-2210.21,0.00023561,2]
[319477707,1710799924530,-1855.24,0.00023561,2]
[319477708,1710799924539,-869.7,0.00023561,2]
[319477709,1710799924549,-500.0,0.00023561,2]
[319477710,1710799924558,-1181.58,0.00023561,2]
[319477711,1710799924568,-1747.53,0.00023561,2]
[319477712,1710799924578,-680.92,0.00023561,2]
[319477713,1710799924590,-500.0,0.00023561,2]
[319477714,1710799924600,-417.585999,0.00023561,7]
[319477715,1710799924609,-665.42,0.00023561,2]
[319477716,1710799924619,-500.0,0.00023561,2]
[319477717,1710799924631,-1501.92,0.00023561,2]
[319477718,1710799924640,-417.586002,0.00023561,7]
[319477719,1710799924650,-2323.42,0.00023561,2]
[319477720,1710799924663,-2355.45,0.00023561,2]
[319477721,1710799924673,-2348.13,0.00023561,2]
[319477722,1710799924683,-1841.43,0.00023561,2]
[319477723,1710799924693,-500.0,0.00023561,2]
[319477724,1710799924702,-633.95,0.00023561,2]
[319477725,1710799924712,-2789.32,0.00023561,2]
[319477726,1710799924722,-1047.26,0.00023561,2]
[319477727,1710799924731,-500.0,0.00023561,2]
[319477728,1710799924741,-506.7,0.00023561,2]
[319477729,1710799924750,-500.0,0.00023561,2]
[319477730,1710799924759,-2028.96,0.00023561,2]
[319477731,1710799924769,-727.29,0.00023561,2]
[319477732,1710799924778,-500.0,0.00023561,2]
[319477733,1710799924787,-1121.74,0.00023561,2]
[319477734,1710799924796,-182.88395503,0.00023561,2]
[319477735,1710799924806,-499.012743,0.00023561,7]
[319477736,1710799924815,-500.0,0.00023561,2]
[319477737,1710799924824,-1964.52,0.00023561,2]
[319477738,1710799924834,-500.0,0.00023561,2]
[319477739,1710799924843,-499.012746,0.00023561,7]
[319477740,1710799924853,-800.57,0.00023561,2]
[319477741,1710799924862,-151.0,0.00023561,7]
[319477742,1710799924871,-855.83,0.00023561,2]
[319477743,1710799924881,-500.0,0.00023561,2]
[319477744,1710799924890,-515.18,0.00023561,2]
[319477745,1710799924900,-805.44,0.00023561,2]
[319477746,1710799924911,-1465.25,0.00023561,2]
[319477747,1710799924920,-500.0,0.00023561,2]
[319477748,1710799924930,-703.59,0.00023561,2]
[319477749,1710799924939,-1137.55,0.00023561,2]
[319477750,1710799924948,-1372.51,0.00023561,2]
[319477751,1710799924957,-500.0,0.00023561,2]
[319477752,1710799924967,-1311.42,0.00023561,2]
[319477753,1710799924976,-890.31,0.00023561,2]
[319477754,1710799924985,-693.23,0.00023561,2]
[319477755,1710799924995,-606.63,0.00023561,2]
[319477756,1710799925004,-1355.8,0.00023561,2]
[319477757,1710799925014,-633.23,0.00023561,2]
[319477758,1710799925024,-931.19,0.00023561,2]
[319477759,1710799925034,-1311.22,0.00023561,2]
[319477760,1710799925043,-500.0,0.00023561,2]
[319477761,1710799925053,-931.2,0.00023561,2]
[319477762,1710799925064,-500.0,0.00023561,2]
[319477763,1710799925074,-560.88,0.00023561,2]
[319477764,1710799925083,-578.22,0.00023561,2]
[319477765,1710799925093,-1373.23,0.00023561,2]
[319477766,1710799925103,-1189.08,0.00023561,2]
[319477767,1710799925113,-582.88,0.00023561,2]
[319477768,1710799925123,-500.0,0.00023561,2]
[319477769,1710799925133,-807.67,0.00023561,2]
[319477770,1710799925143,-500.0,0.00023561,2]
[319477771,1710799925152,-500.0,0.00023561,2]
[319477772,1710799925163,-500.0,0.00023561,2]
[319477773,1710799925173,-500.0,0.00023561,2]
[319477774,1710799925183,-667.48,0.00023561,2]
[319477775,1710799925193,-1318.07,0.00023561,2]
[319477776,1710799925202,-2537.59,0.00023561,2]
[319477777,1710799925211,-1833.13,0.00023561,2]
[319477778,1710799925221,-500.0,0.00023561,2]
[319477779,1710799925230,-500.0,0.00023561,2]
[319477780,1710799925240,-584.63,0.00023561,2]
[319477781,1710799925249,-922.71,0.00023561,2]
[319477782,1710799925259,-522.08,0.00023561,2]
[319477783,1710799925269,-1186.68,0.00023561,2]
[319477784,1710799925279,-500.0,0.00023561,2]
[319477785,1710799925288,-500.0,0.00023561,2]
[319477786,1710799925298,-797.09,0.00023561,2]
[319477787,1710799925307,-998.55,0.00023561,2]
[319477788,1710799925317,-1847.99,0.00023561,2]
[319477789,1710799925327,-500.0,0.00023561,2]
[319477790,1710799925336,-172.732054,0.00023561,7]
[319477791,1710799925346,-500.0,0.00023561,2]
[319477792,1710799925356,-500.0,0.00023561,2]
[319477793,1710799925366,-500.0,0.00023561,2]
[319477794,1710799925376,-172.73206,0.00023561,7]
[319477795,1710799925386,-1079.26,0.00023561,2]
[319477796,1710799925395,-1856.02,0.00023561,2]
[319477797,1710799925405,-1418.3,0.00023561,2]
[319477798,1710799925415,-1186.25,0.00023561,2]
[319477799,1710799925424,-897.94,0.00023561,2]
[319477800,1710799925434,-500.0,0.00023561,2]
[319477801,1710799925444,-844.5,0.00023561,2]
[319477802,1710799925453,-1228.33,0.00023561,2]
[319477803,1710799925463,-656.86,0.00023561,2]